Cogmind - Beta 11.1 @@@ ROGUE MODE // 2022.06.25 @ 13:01:18 Player: AnthonyDPS 2004 Result: Destroyed by Proton Bomb Trap Performance ------------- Evolutions (2) 1000 Regions Visited (5) 1000 Robots Destroyed (53) 265 Value Destroyed (1599) 1599 Prototype IDs (6) 120 Alien Tech Used (0) 0 Bonus (791) 791 TOTAL SCORE: 4775 Bonus ------- Follower Combat Kills 91 Entered Garrisons 200 Used RIF Installer 500 Cogmind --------- Core Integrity 0/550 Matter 300/300 Energy 159/160 System Corruption 0% Temperature Cool (0) Movement Rolling (115) Ox1 Location -8/Materials Parts ------- > --- POWER (1) -------- Light Nuclear Core > --- PROPULSION (3) --- Compact Wheel > --- UTILITY (4) ------ Medium Storage Unit Melee Analysis Suite Core Analyzer Weapon Shielding > --- WEAPON (3) ------- High-powered Shotgun Improved Datajack > --- INVENTORY (10) --- Power Amplifier Weight Redist. System Visual Processing Unit Targeting Computer Chainsword Peak State ------------ > --- POWER ------------ Light Nuclear Core > --- PROPULSION ------- Improved Treads Improved Treads Improved Treads > --- UTILITY ---------- Large Storage Unit Melee Analysis Suite Light Armor Plating System Shield > --- WEAPON ----------- Chainsword Chainsword Chainsword > --- INVENTORY -------- Ion Engine Aluminum Leg Aluminum Leg Carbon-fiber Leg Power Amplifier Medium Storage Unit Small Matter Pod Structural Scanner Structural Scanner Visual Processing Unit Targeting Computer Core Analyzer Weapon Shielding Remote Shield Missile Launcher [Rating: 32] Favorites ----------- Power Ion Engine Engine Ion Engine Power Core Light Nuclear Core Reactor Cold Fusion Reactor Propulsion Improved Treads Treads Improved Treads Leg Aluminum Leg Wheel Compact Wheel Utility Large Storage Unit Device Power Amplifier Storage Large Storage Unit Processor Melee Analysis Suite Hackware System Shield Protection Weapon Shielding Weapon Advanced Beam Cannon Energy Gun Improved Medium Laser Energy Cannon Advanced Beam Cannon Ballistic Gun Autogun Launcher Missile Launcher Impact Weapon Heavy Flail Slashing Weapon Chainsword Special Melee Weapon Improved Datajack Build | -11 -10 -9 -9 -9 -8 ------- Run | Scr Mat Mat Sto Gar Mat Slots Evolved 4 | . . 2 . . 2 Power . | . . . . . . Propulsion 1 | . . 1 . . . Utility 2 | . . 1 . . 1 Weapon 1 | . . . . . 1 Parts Attached 73 | 7 4 7 30 2 23 Power 7 | 1 . . 2 1 3 Engine 4 | 1 . . 1 . 2 Core 2 | . . . . 1 1 Reactor 1 | . . . 1 . . Propulsion 23 | 2 . . 17 . 4 Treads 11 | . . . 11 . . Leg 11 | 2 . . 6 . 3 Wheel 1 | . . . . . 1 Hover . | . . . . . . Flight . | . . . . . . Utility 18 | 2 2 5 2 1 6 Device 8 | 1 1 3 2 1 . Storage 5 | 1 1 2 . . 1 Processor 2 | . . . . . 2 Hackware 1 | . . . . . 1 Protection 2 | . . . . . 2 Artifact . | . . . . . . Weapon 25 | 2 2 2 9 . 10 Energy Gun 7 | 1 1 . 5 . . Energy Cannon 4 | . . . 4 . . Ballistic Gun 5 | 1 1 2 . . 1 Ballistic Cannon . | . . . . . . Launcher 3 | . . . . . 3 Special Weapon . | . . . . . . Impact Weapon 2 | . . . . . 2 Slashing Weapon 3 | . . . . . 3 Piercing Weapon . | . . . . . . Special Melee Weapon 1 | . . . . . 1 Unidentified Prototypes 4 | . . . 4 . . Parts Lost 20 | . . . 8 . 12 Power 3 | . . . 1 . 2 Propulsion 9 | . . . 3 . 6 Utility 5 | . . . 2 . 3 Weapon 3 | . . . 2 . 1 Highest Loss Streak 9 | . . . 8 . 9 To Critical Strikes . | . . . . . . Average Slot Usage (%) 87 | . 100 85 90 99 74 Engine 4 | . 14 11 3 . 1 Core 1 | . . . . 3 3 Reactor 2 | . . . 6 7 . Treads 13 | . . . 20 33 9 Leg 9 | . 28 22 8 . 2 Device 13 | . 14 19 20 22 . Storage 10 | . 14 11 11 11 9 Processor 4 | . . . . . 14 Protection 2 | . . . . . 8 Energy Gun 6 | . 19 2 9 11 . Energy Cannon 4 | . . . 9 11 . Ballistic Gun 5 | . 8 19 2 . 2 Impact Weapon 1 | . . . . . 4 Slashing Weapon 1 | . . . . . 5 Special Melee Weapon 1 | . . . . . 3 Naked Turns . | . . . . . . Heaviest Build 45 | 14 30 33 41 41 45 Greatest Support 69 | 20 20 20 46 46 69 Greatest Overweight (x) 13 | . 1 1 13 . 6 Average Overweight (x) . | . . 1 . . 1 Largest Inventory Capacity 15 | 8 15 15 15 15 15 Average Capacity 13 | 7 10 14 15 15 11 Most Carried 15 | 8 8 10 15 15 15 Average Carried 10 | 5 7 9 12 14 8 Final Capacity 15 | 8 15 15 15 15 10 Final Carried 15 | 6 8 10 14 15 5 Class Distribution -------------------- 85% | Mutant 14% | Scavenger-Mutant Dominant Class ---------------- Mutant | -10/Materials Mutant | -9/Materials Scavenger-Mutant | -9/Storage Mutant | -9/Garrison Mutant | -8/Materials Resources | -11 -10 -9 -9 -9 -8 ----------- Run | Scr Mat Mat Sto Gar Mat Matter Collected 1034 | 265 33 37 414 20 265 Remotely . | . . . . . . Salvage Created 1944 | 191 81 37 633 476 526 Parts 115 | 12 10 3 29 32 29 Haulers Intercepted . | . . . . . . Recyclers Shooed 2 | 2 . . . . . Parts Field Recycled . | . . . . . . Retrieved Matter . | . . . . . . Parts Self-Destructed . | . . . . . . Prevented . | . . . . . . Kills | -11 -10 -9 -9 -9 -8 ------- Run | Scr Mat Mat Sto Gar Mat Combat Hostiles Destroyed 44 | . 3 1 14 11 15 Melee 10 | . . . . . 10 Guns 17 | . 3 1 5 5 3 Cannons 15 | . . . 9 6 . AOE 2 | . . . . . 2 Classes Destroyed 10 | 3 2 1 3 1 . Worker 2 | 2 . . . . . Tunneler 3 | 3 . . . . . Recycler 1 | 1 . . . . . Watcher 3 | . 2 . 1 . . Swarmer 8 | . 3 . . . 5 Grunt 26 | . . 1 10 9 6 Brawler 1 | . . . 1 . . Duelist 2 | . . . . 1 1 Protector 2 | . . . 2 . . Sentry 5 | . . . 1 1 3 Best Kill Streak 8 | 2 3 1 3 8 4 Combat Bots Only 8 | . 3 1 3 8 4 Max Kills in Single Turn 1 | 1 1 1 1 1 1 Gunslinging . | . . . . . . Exploded 1 | . . . . . 1 Melee 1 | . . . . . 1 Uniques/NPCs Destroyed . | . . . . . . Combat | -11 -10 -9 -9 -9 -8 -------- Run | Scr Mat Mat Sto Gar Mat Damage Taken 3316 | . 41 11 1160 520 1584 Core 802 | . . . 200 33 569 Absorbed by Shields . | . . . . . . Redirected to Shielding 41 | . . . . . 41 Regen/Repaired (Parts) 5 | . . . 5 . . Core Remaining (%) 80 | 100 100 . . 41 . Volleys Fired 113 | 18 6 5 45 27 12 Largest 2 | 1 2 2 2 2 1 Hottest 136 | 50 100 46 136 124 36 Shots Fired 189 | 18 12 10 83 54 12 Gun 119 | 18 12 10 43 27 9 Cannon 67 | . . . 40 27 . Launcher 3 | . . . . . 3 Special . | . . . . . . Kinetic 36 | . 5 10 12 . 9 Thermal 150 | 18 7 . 71 54 . Explosive 3 | . . . . . 3 Electromagnetic . | . . . . . . Robot Hit Streak 10 | 7 6 7 7 10 4 Robot Miss Streak 3 | 2 1 1 2 3 2 Penetration Max . | . . . . . . Secondary Targets . | . . . . . . Shots Hit Robots 157 | 12 7 8 46 35 49 Core Hits 72 | 7 6 2 23 13 21 Critical Kills . | . . . . . . Critical Parts Destroyed . | . . . . . . Critical Strikes 12 | 2 1 . 4 2 3 Burn 9 | 2 1 . 4 2 . Sever 3 | . . . . . 3 Melee Attacks 52 | . . . . . 52 Impact 1 | . . . . . 1 Slashing 35 | . . . . . 35 Piercing . | . . . . . . Sneak Attacks 13 | . . . . . 13 Combat Hostiles . | . . . . . . Follow-up Attacks 4 | . . . . . 4 Damage Inflicted 2978 | 163 81 117 863 637 1117 Guns 1124 | 163 81 117 278 353 132 Cannons 869 | . . . 585 284 . Explosions 74 | . . . . . 74 Melee 911 | . . . . . 911 Ramming . | . . . . . . Kinetic 266 | . 17 117 . . 132 Thermal 1727 | 163 64 . 863 637 . Explosive 74 | . . . . . 74 Electromagnetic . | . . . . . . Impact . | . . . . . . Slashing 911 | . . . . . 911 Piercing . | . . . . . . Highest Corruption . | . . . . . . Average Corruption . | . . . . . . Corruption Purged . | . . . . . . Corruption Blocked . | . . . . . . Overload Shots . | . . . . . . Overflow Damage 54 | . . . 5 . 49 Projectiles 5 | . . . 5 . . Explosions . | . . . . . . Melee 49 | . . . . . 49 Knockbacks . | . . . . . . Impact . | . . . . . . Kinetic . | . . . . . . Secondary . | . . . . . . Self-Inflicted Damage 27 | . . . . . 27 Shots 1 | . . . . . 1 Rammed . | . . . . . . Targets Rammed . | . . . . . . Kicked . | . . . . . . Crushed . | . . . . . . Highest Temperature 504 | 70 70 6 504 318 1 Average Temperature 126 | 24 29 6 155 146 1 Received Heat Transfer 1383 | . . 6 645 228 504 Effects 11 | . . . 9 2 . Shutdowns 1 | . . . 1 . . Energy Bleed 1 | . . . . 1 . Interference 2 | . . . 2 . . Short Circuit 3 | . . . 2 1 . Damage (major) 4 | . . . 4 . . Siege Activations . | . . . . . . Robots Corrupted . | . . . . . . Combat Hostiles . | . . . . . . Parts Fried . | . . . . . . Impact Corruptions . | . . . . . . Robots Melted . | . . . . . . Combat Hostiles . | . . . . . . Parts Melted 13 | 1 2 . 5 5 . Heat Transferred 4191 | 629 259 . 1860 1443 . Parts Sabotaged . | . . . . . . Parts Stolen . | . . . . . . Parts Stripped . | . . . . . . Power Chain Reactions . | . . . . . . Missiles Intercepted . | . . . . . . Alert | -11 -10 -9 -9 -9 -8 ------- Run | Scr Mat Mat Sto Gar Mat Peak Influence 321 | 30 133 34 173 321 259 Initial 156 | . 19 . . 36 156 Average 106 | 14 93 9 72 171 162 Maximum Alert Level 1 | . . . . 1 1 Low Security (%) 86 | 100 100 100 100 58 76 Level 1 13 | . . . . 41 23 Level 2 . | . . . . . . Level 3 . | . . . . . . Level 4 . | . . . . . . Level 5 . | . . . . . . High Security . | . . . . . . Max Security . | . . . . . . Squads Dispatched 4 | . . 1 2 . 1 Investigation 1 | . . 1 . . . Extermination . | . . . . . . Reinforcement 1 | . . . . . 1 Assault 2 | . . . 2 . . Garrison . | . . . . . . Intercept . | . . . . . . Searches Triggered . | . . . . . . Construction Impeded . | . . . . . . Haulers Reinforced . | . . . . . . Active Scanning Responses . | . . . . . . Cargo Convoy Interrupts . | . . . . . . Stealth | -11 -10 -9 -9 -9 -8 --------- Run | Scr Mat Mat Sto Gar Mat Distress Signals 5 | . . . 3 . 2 Communications Jammed . | . . . . . . Distress Signals . | . . . . . . Times Spotted 65 | . 6 1 21 11 26 Peak Tracking Total 6 | . 4 1 6 5 6 Tactical Retreats 3 | . . . 2 . 1 Traps | -11 -10 -9 -9 -9 -8 ------- Run | Scr Mat Mat Sto Gar Mat Traps Triggered 3 | . . 1 1 . 1 Indirectly . | . . . . . . Trap Hack Attempts . | . . . . . . Triggered . | . . . . . . Disarmed . | . . . . . . Reprogrammed . | . . . . . . Reused . | . . . . . . Traps Extracted . | . . . . . . Installed . | . . . . . . Triggered . | . . . . . . Machines | -11 -10 -9 -9 -9 -8 ---------- Run | Scr Mat Mat Sto Gar Mat Machines Disabled 2 | . . . 2 . . Max in Single Turn 1 | . . . 1 . . Machines Sabotaged . | . . . . . . Garrisons Compromised . | . . . . . . Overloaded Fab Kills . | . . . . . . Hacking | -11 -10 -9 -9 -9 -8 --------- Run | Scr Mat Mat Sto Gar Mat Machines Accessed 10 | . . 1 6 . 3 Terminals 6 | . . 1 3 . 2 Fabricators . | . . . . . . Repair Stations 1 | . . . 1 . . Recycling Units 1 | . . . 1 . . Scanalyzers 1 | . . . . . 1 Garrison Access 1 | . . . 1 . . Total Hacks 43 | . . 2 19 . 22 Successful 32 | . . 1 13 . 18 Failed 11 | . . 1 6 . 4 Catastrophic 1 | . . . 1 . . Database Lockouts . | . . . . . . Manual . | . . . . . . Terminals 15 | . . 2 7 . 6 Fabricators . | . . . . . . Repair Stations 8 | . . . 8 . . Recycling Units 3 | . . . 3 . . Scanalyzers 16 | . . . . . 16 Garrison Access 1 | . . . 1 . . Terminal Hacks 8 | . . 1 3 . 4 Robot Analysis 1 | . . 1 . . . Prototype ID Bank 1 | . . . . . 1 Open Door 1 | . . . 1 . . Emergency Access Points 2 | . . . . . 2 Unreport Threat 1 | . . . 1 . . Dispatch Records 2 | . . . 1 . 1 Fabricator Hacks . | . . . . . . Repair Station Hacks 6 | . . . 6 . . Scan Component 3 | . . . 3 . . Repair 3 | . . . 3 . . Recycling Unit Hacks 3 | . . . 3 . . Process 1 | . . . 1 . . Report Inventory 1 | . . . 1 . . Retrieve Matter 1 | . . . 1 . . Scanalyzer 14 | . . . . . 14 Insert Component 7 | . . . . . 7 Analyze 7 | . . . . . 7 Garrison Access Hacks 1 | . . . 1 . . Unlock Access 1 | . . . 1 . . Unauthorized Hacks . | . . . . . . Terminals . | . . . . . . Fabricators . | . . . . . . Repair Stations . | . . . . . . Recycling Units . | . . . . . . Scanalyzers . | . . . . . . Garrison Access . | . . . . . . Data Cores Recovered . | . . . . . . Used . | . . . . . . Hacking Detections 7 | . . 1 4 . 2 Full Trace Events . | . . . . . . Feedback Events . | . . . . . . Feedback Blocked . | . . . . . . Robot Schematics Acquired . | . . . . . . Robots Built . | . . . . . . Authchips . | . . . . . . Time . | . . . . . . Total Robot Build Rating . | . . . . . . Part Schematics Acquired 7 | . . . . . 7 Parts Built . | . . . . . . Authchips . | . . . . . . Time . | . . . . . . Total Part Build Rating . | . . . . . . Parts Repaired 3 | . . . 3 . . Time 103 | . . . 103 . . Parts Recycled . | . . . . . . Recycled Matter 299 | . . . 299 . . Retrieved Matter 498 | . . . 498 . . Retrieved Components . | . . . . . . Parts Scanalyzed 7 | . . . . . 7 Part Schematics Acquired 7 | . . . . . 7 Parts Damaged . | . . . . . . Bothacking | -11 -10 -9 -9 -9 -8 ------------ Run | Scr Mat Mat Sto Gar Mat Used RIF Installer 1 | . . . . 1 . Robots Hacked 8 | . . . . . 8 Non-combat 7 | . . . . . 7 Combat 1 | . . . . . 1 Robot Hacks Applied 13 | . . . . . 13 parse_system 5 | . . . . . 5 no_distress 4 | . . . . . 4 find_recycling 1 | . . . . . 1 ignore_parts 3 | . . . . . 3 Relay Couplers Released . | . . . . . . Fabnet Peak Effective % . | . . . . . . Robots Rewired . | . . . . . . Allies Hacked . | . . . . . . Hacks Repelled . | . . . . . . Allies | -11 -10 -9 -9 -9 -8 -------- Run | Scr Mat Mat Sto Gar Mat Total Allies 2 | . . . 2 . . Largest Group 2 | . . . 2 . . Highest-Rated Group 62 | . . . 62 . . Highest-Rated Ally 31 | . . . 31 . . Total Orders . | . . . . . . Ally Attacks 8 | . . . 8 . . Total Damage 167 | . . . 167 . . Kills 3 | . . . 3 . . Allies Corrupted . | . . . . . . Allies Melted . | . . . . . . Intel | -11 -10 -9 -9 -9 -8 ------- Run | Scr Mat Mat Sto Gar Mat Robot Analysis Total 1 | . . 1 . . . Derelict Logs Recovered . | . . . . . . Drone Launches . | . . . . . . Drone Recoveries . | . . . . . . Exploration | -11 -10 -9 -9 -9 -8 ------------- Run | Scr Mat Mat Sto Gar Mat Turns Passed 3597 | 240 410 444 846 555 1102 Spaces Moved 1580 | 159 240 206 267 209 499 Core 177 | 11 . . 10 . 156 Treads 570 | . . . 171 209 190 Legs 759 | 148 240 206 86 . 79 Wheels 74 | . . . . . 74 Hover . | . . . . . . Flight . | . . . . . . Fastest Speed 50 | 50 120 190 120 160 100 Average Speed 165 | 115 140 190 187 160 173 Slowest Speed 700 | 120 190 190 700 160 350 Overloaded Moves . | . . . . . . Propulsion Burnouts . | . . . . . . Robots Hopped . | . . . . . . Cave-ins Triggered . | . . . . . . Exploration Rate (%) 31 | 8 40 13 33 50 47 Regions Visited 5 Branch Regions 1 Pre-discovered Areas . | . . . . . . Known Exits Taken 1 | . . . 1 . . Unknown Exits Taken 3 | 1 1 1 . . . Scrap Searched . | . . . . . . Spaces Dug 1 | . . . . . 1 Terrain Destroyed 31 | . . . . . 31 Melee 1 | . . . . . 1 Projectile . | . . . . . . AOE 30 | . . . . . 30 Terrain Rammed . | . . . . . . Walls Destroyed . | . . . . . . Machines Disabled . | . . . . . . Actions | -11 -10 -9 -9 -9 -8 --------- Run | Scr Mat Mat Sto Gar Mat Total 2331 | 196 304 251 528 376 676 Wait 460 | 1 46 27 165 137 84 Move 1574 | 158 239 205 266 207 499 Hop . | . . . . . . Pick Up 25 | 10 4 2 6 1 2 Fast Attach 43 | 5 2 4 18 1 13 Attach 17 | 2 1 2 4 . 8 Detach 6 | . . 2 3 . 1 Swap 13 | . 1 1 8 1 2 Drop 35 | 2 5 3 13 2 10 Fire 113 | 18 6 5 45 27 12 Melee 45 | . . . . . 45 Ram . | . . . . . . Kick . | . . . . . . Crush . | . . . . . . Escape Stasis . | . . . . . . Rewire . | . . . . . . Trap . | . . . . . . Miscellaneous . | . . . . . . Route ------- -11/Scrapyard -10/Materials -9/Materials (discovered 2 exits: *Sto x2) -9/Storage -9/Garrison -8/Materials History --------- Turn | Location | Event 4 | -11/Scrapyard | Discovered new exit (range 16) 241 | -11/Scrapyard | Entered Materials 309 | -10/Materials | Build established: Mutant 510 | -10/Materials | Discovered new exit (range 9) 651 | -10/Materials | Entered another Materials area 651 | -9/Materials | Evolved 2 slots: Propulsion x1, Utility x1 652 | -9/Materials | Discovered new exit (range 5) 652 | -9/Materials | Discovered new exit (range 15) 1095 | -9/Materials | Entered Storage 1191 | -9/Storage | Met a pair of Derelict thieves 1364 | -9/Storage | Lost 8 parts (1p3n2u2w) 1541 | -9/Storage | Repaired Lgt. Treads 1541 | -9/Storage | Repaired Imp. Medium Laser 1567 | -9/Storage | Repaired Lgt. Treads 1683 | -9/Storage | Build established: Scavenger-Mutant 1915 | -9/Storage | Identified exit to Garrison 1941 | -9/Storage | Entered Garrison 1949 | -9/Garrison | Installed Relay Interface Framework 2006 | -9/Garrison | Triggered checkpoint 2008 | -9/Garrison | Build established: Mutant 2204 | -9/Garrison | Triggered checkpoint 2230 | -9/Garrison | Triggered checkpoint 2243 | -9/Garrison | Core integrity fell below 50% 2323 | -9/Garrison | Destroyed 8 combat bots 2470 | -9/Garrison | Triggered checkpoint 2480 | -9/Garrison | Discovered new exit (range 10) 2496 | -9/Garrison | Entered Materials 2496 | -8/Materials | Evolved 2 slots: Utility x1, Weapon x1 2931 | -8/Materials | Core integrity fell below 50% 2957 | -8/Materials | Lost 9 parts (1p4n3u1w) 3044 | -8/Materials | Core integrity fell below 20% 3062 | -8/Materials | Lost 3 parts (1p2n) 3598 | -8/Materials | Destroyed by Proton Bomb Trap Last Messages --------------- 03517_ G-47 Trooper destroyed. 03523_ L-31 Rogue destroyed. 03529_ Acquired 38 matter. 03531_ Acquired Lgt. Nuclear Core. 03544_ G-47 Trooper destroyed. 03547_ Sneak attack on U-05 Engineer. 03547_ Jacked U-05 Engineer... >>no_distress Distress signal routine blocked. 03551_ Sneak attack on R-06 Scavenger. 03551_ Jacked R-06 Scavenger... >>ignore_parts Collection routines blocked. 03554_ Acquired 28 matter. 03555_ R-06 Scavenger collects Aluminum Leg. 03560_ R-06 Scavenger collects Imp. Heat Sink. 03563_ R-06 Scavenger collects Aluminum Leg. 03566_ R-06 Scavenger collects Core Shielding. 03598_ Triggered Proton Bomb Trap. 03598_ A bubble of electromagnetic force engulfs the area. Map ----- +----------------------------------------------------+ | ????????????????????????# ##+###### #] #?? | | ????????????????????????# # """ #?? | | ????????????????????????# + """ #?? | | ????????????????????????# # """ #?? | | ????????????????????????# # #?? | | ????????????????????####### ########### """ #?? | | ????????????????????# ## #?????????# """ #?? | | ????????????????????# ## ########### """ #?? | | ????????????????????# / ## %% / #?? | | ????????????????????# ## #####/##########/###?? | | ????????????????????# ! ## # !!=! #????# #???? | | ????????????????????# !## # =!= #????# #???? | | #############???????# ## # ] ] ! #????# #???? | | #???????# ## # [+???? #???? | | ?? #???????# ## ###########???? #???? | | ????? #???????###+### #?????????????? #???? | | ????????# ########## ## #?????????????? #???? | | ????????# #?????? ?????? ???? | | ????????# ########## ####?????? ??????###???? | | ????????# #????????## ##???????? ????????????? | | ????????# ########??# #???????? #????????????? | | ######### # #??# #########r #????????????? | | # # """ #??# #????????????? | | """# # "Y" #??# #????????????? | | """# # #??# ^ """"""" ##????????+??? | | """# # #??#^ @ """"""" #???????????? | | + # ]/#### """"""" #???????????? | | # ##+########r """"""" #???????????? | | "T" ! # """"""" +???????????? | | """ # #???????????? | | # % ##########??? | | ######### ############T### ! #??? | | # # ##????###?# #### | | % + ##### ????????# T | | ! # #??????# | | ! # #####+### #??????# | | ###### ## #???? #???##????### ##?? | | ???#######+#####??[#?????????#"" """ #??? | | ?????# #?? #?????????#"T """"" ###??? | | ?????# """ """ #???#?????????#"" """"" #????? | | ?????# """ """ #?????????????### """"" #????? | | ?????# """ """ #???????????????# %""" #????? | | ?????# #?????????#####?# #????? | | ?????# [ ####### ### #?# ##+##? | | ?????# + ###% | | ?????# #########?# #####? | | ################?????????## ##+###????? | | [ #???????????????# #?????????? | | "" """ #########???????# % #?????????? | | T """ ] ##! /[[######### #?????????? | +----------------------------------------------------+ Best States ------------- Heat Dissipation 41 Energy Generation 19 Energy Capacity 250 Matter Stores 300 Matter Capacity 300 Sight Range 16 Robot Scan Range 14 Terrain Scan Density 10 Power Amplification 20 Armor Coverage 150 Weapon Shielding 33 Evasion (%) 55 Melee Accuracy 5 Core Analysis 6 Recoil Reduction 3 Defensive Hacking 10 Item Schematics ----------------- Weapon Shielding | -8/Materials | Scanalyzed Structural Scanner | -8/Materials | Scanalyzed Remote Shield | -8/Materials | Scanalyzed Heat Sink | -8/Materials | Scanalyzed Carbon-fiber Leg | -8/Materials | Scanalyzed Ion Engine | -8/Materials | Scanalyzed Sml. Matter Pod | -8/Materials | Scanalyzed Robot Schematics ------------------ None Fabricated ------------ Nothing Alien Tech Used ----------------- None Achievements -------------- None Challenges ------------ None Game ------ Seed WeaponAntimissileWings Manual? 0 Play Time 00:48:01 Cumulative 32.7 hours Start 2022.06.25 @ 11:52:35 End 2022.06.25 @ 13:01:18 Sessions 1 Manual Loads 0 Difficulty Rogue Special Mode None Game No. 62 Rogue 62 Adventurer 0 Explorer 0 Win Type - Total 0 Types 0/0/0/0/0/0/0/0/0 Lore% 25 Gallery% 33 Achievement% 26 Wizard Run 0 Options --------- ASCII 0 Keyboard 0 Movement Numpad Keybinds 0 Fullscreen 2 Font 18/SmallcapsGlow Map View 76x50 Tactical HUD 1 Map Filters NONE Filters NONE Steam 1 RUN: 84d1af83-2fe5-4908-a1f8-080e4641a761